bitfinex/quotes_ETHUSD_20260114
["timestamp","ask_amount","ask_price","bid_price","bid_amount"]
[1768406469191,1.24454738,3347.1,3345.7,4.54158504]
[1768406469392,1.24454738,3347.1,3345.9,2.98867454]
[1768406469594,2.98775022,3347.0,3345.8,2.9888218]
[1768406469788,0.002,3346.4,3345.8,2.9888218]
[1768406470115,0.002,3346.7,3345.8,4.60568066]
[1768406470412,0.002,3346.7,3345.8,4.15152787]
[1768406470786,0.002,3346.7,3345.8,7.14034967]
[1768406471119,0.002,3346.7,3345.9,1.16270607]
[1768406471818,0.002,3346.7,3345.7,3.37886128]
[1768406471989,0.63737872,3346.6,3345.4,1.16270607]
[1768406472189,0.63737872,3346.6,3345.6,2.98893794]
[1768406472391,0.63737872,3346.6,3345.3,0.39]
[1768406472392,0.63737872,3346.6,3345.5,1.16270607]
[1768406472590,0.63737872,3346.6,3345.6,1.16270607]
[1768406473086,1.03337872,3346.6,3345.7,2.9888557]
[1768406473290,0.51775301,3346.5,3345.6,4.15164093]
[1768406473692,0.51775301,3346.5,3345.7,2.98883169]
[1768406473914,0.51775301,3346.5,3345.8,1.16270607]
[1768406474121,1e-08,3346.5,3345.8,1.19259428]
[1768406474333,0.002,3346.7,3345.8,1.16270607]
[1768406474490,2.99003693,3346.7,3345.6,2.98895891]
[1768406474926,2.99003693,3346.7,3345.6,4.15166498]
[1768406475104,2.99003693,3346.7,3345.7,1.16270607]
[1768406475614,0.396,3346.6,3345.7,1.16270607]
[1768406475825,3.384126,3346.6,3345.7,4.1515882]
[1768406476183,3.384126,3346.6,3345.5,2.98902101]
[1768406476389,0.396,3346.6,3345.7,2.98889921]
[1768406476625,0.396,3346.6,3345.7,4.15160528]
[1768406477121,0.396,3346.6,3345.7,1.16270607]
[1768406477321,0.396,3346.6,3345.7,4.15160596]
[1768406477731,0.002,3346.7,3345.9,4.15143854]
[1768406477946,0.396,3346.6,3345.9,4.86546398]
[1768406478095,0.002,3346.7,3345.9,4.86546398]
[1768406478689,0.002,3346.7,3345.9,7.85419645]
[1768406478896,1.15422266,3346.8,3346.2,1.16270607]
[1768406479096,1.15422266,3346.8,3345.9,0.71402544]
[1768406479097,4.14218246,3346.8,3345.9,0.71402544]
[1768406479523,4.14218246,3346.8,3345.8,4.54150028]
[1768406479721,4.14218246,3346.8,3345.8,3.37879421]
[1768406479923,0.09032472,3346.7,3345.8,3.37879332]
[1768406480222,2.98939812,3347.4,3345.9,1.19259339]
[1768406480429,2.98939812,3347.4,3346.1,1.17851697]
[1768406480659,0.002,3347.4,3346.1,1.17851697]
[1768406480797,0.396,3347.3,3346.1,1.17851697]
[1768406481608,0.002,3347.4,3346.1,1.17851697]
[1768406481828,0.002,3347.4,3346.3,1.14684398]
[1768406482129,0.002,3347.4,3346.2,5.97692904]
[1768406482130,0.09032472,3347.2,3346.2,5.8267783]
[1768406482326,0.396,3347.1,3346.2,5.8267783]
[1768406482502,0.09032472,3347.0,3346.2,5.8267783]
[1768406482900,0.09032472,3347.0,3346.1,2.98849793]
[1768406483327,0.09032472,3347.0,3346.1,5.97705176]
[1768406483501,0.17534802,3346.9,3346.1,5.97705176]
[1768406483834,0.09032472,3346.3,3345.8,0.001]
[1768406484132,0.396,3346.4,3345.9,2.98869781]
[1768406484328,0.396,3346.4,3345.9,2.83469781]
[1768406484507,0.09032472,3346.3,3345.8,0.001]
[1768406484903,0.396,3346.4,3345.8,0.001]
[1768406485414,0.09032472,3346.3,3345.2,1.38853746]
[1768406485596,0.26567274,3346.3,3345.8,2.98881296]
[1768406485801,0.26567274,3346.3,3345.2,4.81565032]
[1768406485802,0.17534802,3346.3,3345.3,1.14684398]
[1768406485996,0.17534802,3346.3,3345.4,5.97835834]
[1768406486211,0.09032472,3346.2,3345.0,1.14684398]
[1768406486420,0.09032472,3346.2,3345.3,5.97848448]
[1768406486610,0.45019352,3346.2,3345.3,5.97848448]
[1768406487143,0.3598688,3346.2,3345.3,5.97848448]
[1768406487299,0.3598688,3346.2,3345.4,1.14684398]
[1768406487635,0.396,3346.3,3345.4,1.14684398]
[1768406487816,0.396,3346.5,3345.7,2.98891113]
[1768406488555,3.38422116,3346.5,3345.7,2.98891113]
[1768406488899,2.9880974,3346.7,3345.7,2.98891113]
[1768406489105,0.396,3346.5,3345.7,2.98891113]
[1768406489308,0.396,3346.5,3345.7,5.97782226]
[1768406489937,1.17683072,3347.0,3345.8,1.14684398]
[1768406490434,0.09032472,3347.0,3345.8,1.14684398]
[1768406490734,0.396,3346.9,3345.8,1.14684398]
[1768406490941,0.396,3346.9,3345.9,1.14684398]
[1768406491304,0.09032472,3346.8,3345.7,5.97782226]
[1768406491634,1.26715544,3346.6,3345.7,2.98891113]
[1768406491837,0.09032472,3346.4,3345.4,2.98911164]
[1768406492402,0.09032472,3346.4,3345.4,5.97829081]
[1768406492599,0.09032472,3346.4,3345.4,8.17557834]
[1768406492846,0.09032472,3346.4,3344.5,6.8699305]
[1768406492847,0.09032472,3346.1,3345.3,2.98923664]
[1768406493145,0.09032472,3346.4,3345.3,2.98923664]
[1768406493146,1.26715544,3346.5,3345.3,7.12404866]
[1768406493299,1.17683072,3346.5,3345.3,7.12404866]
[1768406493504,0.81249381,3346.4,3345.4,1.14684398]
[1768406493915,0.09032472,3347.2,3345.6,1.14684398]
[1768406494220,2.98764444,3347.2,3345.6,1.14684398]
[1768406494513,0.48632472,3347.1,3345.6,1.14684398]
[1768406495554,0.48632472,3347.1,3346.1,0.001]
[1768406495749,0.002,3346.6,3346.1,0.001]
[1768406495934,0.48632472,3347.1,3346.1,0.001]
[1768406496253,3.47406565,3347.1,3346.1,5.97810766]
[1768406496460,3.47406565,3347.1,3346.1,2.98955383]
[1768406496661,0.002,3346.9,3346.1,2.98955383]
[1768406497547,0.002,3346.9,3346.1,5.97810766]
[1768406497860,0.002,3346.9,3346.1,2.98955383]
[1768406498018,0.46728226,3346.9,3346.1,2.98955383]
[1768406498215,0.46728226,3346.9,3346.1,0.001]
[1768406498420,3.54548908,3346.9,3346.1,0.001]
[1768406499053,0.55760698,3346.9,3346.1,0.001]
[1768406499225,0.002,3346.9,3346.1,1.14784398]
[1768406499427,0.396,3347.1,3346.6,1.14684398]
[1768406499630,0.396,3347.1,3346.2,1.14684398]
[1768406499955,3.38354637,3347.3,3346.2,1.14684398]
[1768406500151,0.09032472,3347.2,3346.1,0.001]
[1768406500356,1.26715544,3347.2,3346.1,0.001]
[1768406501640,1.26715544,3347.2,3345.8,3.37878057]
[1768406501641,1.26715544,3346.8,3345.8,2.83981087]
[1768406501938,0.396,3346.7,3345.8,3.98665485]
[1768406502151,0.396,3346.8,3346.1,1.14684398]
[1768406502461,0.7343661,3346.8,3346.1,1.14684398]
[1768406503135,0.7343661,3346.8,3346.0,5.9772863]
[1768406503325,0.7343661,3346.8,3346.1,1.14684398]
[1768406503862,0.7343661,3346.8,3346.0,5.9772863]
[1768406504158,0.7343661,3346.8,3345.9,5.97746494]
[1768406504964,0.7343661,3346.8,3345.9,7.12430892]
[1768406505167,0.38124742,3346.7,3345.9,7.12430892]
[1768406505726,0.396,3346.8,3345.9,7.12430892]
[1768406506160,0.396,3346.9,3345.9,7.12430892]
[1768406506460,0.396,3346.9,3346.0,1.14684398]
[1768406506828,1.20246032,3347.5,3346.0,1.14684398]
[1768406507029,0.002,3347.4,3346.2,1.14684398]
[1768406507361,0.396,3347.3,3346.2,1.14684398]
[1768406507956,0.31251886,3347.4,3346.2,1.14684398]
[1768406508167,0.002,3347.4,3346.4,1.14684398]
[1768406509944,0.09032472,3347.2,3346.3,5.97675044]
[1768406510333,0.09032472,3347.3,3346.2,5.97692904]
[1768406510634,0.002,3346.9,3346.3,1.17672773]
[1768406510961,0.002,3347.4,3346.5,1.06927375]
[1768406511268,0.09032472,3347.1,3346.2,2.98846452]
[1768406511467,0.002,3347.2,3346.2,5.97692904]
[1768406511932,0.002,3347.2,3346.2,7.04620279]
[1768406512269,0.42237005,3347.1,3346.2,7.04620279]
[1768406513353,0.002,3347.4,3346.7,0.77127375]
[1768406513857,0.002,3347.4,3346.6,0.39]
[1768406514034,0.002,3347.4,3346.3,1.06927375]
[1768406514035,1.1439727,3347.4,3346.3,1.06927375]
[1768406514233,4.13138675,3347.4,3346.3,1.06927375]
[1768406514662,4.13138675,3347.4,3346.4,2.98828591]
[1768406514867,4.22171147,3347.4,3346.4,2.98828591]
[1768406515066,4.22171147,3347.4,3346.4,5.97657182]
[1768406515467,4.61771147,3347.4,3346.4,5.97657182]
[1768406516039,4.61771147,3347.4,3346.4,2.98828591]
[1768406516969,0.09032472,3347.2,3346.4,2.98828591]
[1768406517969,0.09032472,3347.2,3346.4,5.97657182]
[1768406518170,4.61771147,3347.4,3346.4,5.97657182]
[1768406518475,4.61771147,3347.4,3346.4,2.98828591]
[1768406518875,4.17171147,3347.4,3346.4,2.98828591]
[1768406519047,0.396,3347.3,3346.4,2.98828591]
[1768406519562,0.396,3347.3,3346.1,2.9885344]
[1768406519563,1.1419727,3347.2,3346.1,2.9885344]
[1768406519744,0.09032472,3346.9,3346.1,2.9885344]
[1768406520140,1.23229742,3346.9,3345.9,0.001]
[1768406520341,0.09032472,3346.9,3346.2,2.54146379]
[1768406520546,1.1419727,3347.2,3346.3,2.988318]
[1768406520762,4.24531397,3347.5,3346.4,0.02988285]
[1768406521101,0.396,3347.1,3346.3,12.25084712]
[1768406521273,0.396,3347.1,3346.4,1.06927375]
[1768406521645,0.0256296,3347.5,3346.4,1.06927375]
[1768406521865,0.0256296,3347.5,3346.5,1.06927375]
[1768406521866,0.396,3347.4,3346.5,1.06927375]
[1768406522048,0.0256296,3347.5,3346.7,6.42380102]
[1768406522874,0.0256296,3347.5,3346.8,2.98792876]
[1768406523750,0.0256296,3347.5,3346.7,4.05725131]
[1768406523751,3.0129468,3347.5,3346.7,4.05725131]
[1768406523951,0.0256296,3347.5,3346.7,4.05725131]
[1768406524154,3.01295628,3347.5,3346.7,4.05725131]
[1768406524348,0.396,3347.6,3346.7,5.9759956]
[1768406524586,0.396,3347.6,3346.7,6.97934784]
[1768406524881,0.396,3347.6,3346.7,8.04862159]
[1768406525059,0.002,3347.1,3346.7,5.06060355]
[1768406525644,0.002,3347.1,3346.7,3.9913298]
[1768406525955,0.002,3347.1,3346.6,2.69108685]
[1768406526151,0.002,3347.1,3346.7,2.98799327]
[1768406526583,0.002,3347.1,3346.7,5.97601131]
[1768406526768,0.002,3347.1,3346.7,7.04528506]
[1768406527371,0.002,3347.1,3346.8,1.06927375]
[1768406528172,0.002,3347.1,3346.8,1.77380226]
[1768406529078,0.002,3347.4,3347.2,2.9875717]
[1768406529848,0.002,3347.4,3347.1,4.05691925]
[1768406530160,0.002,3347.4,3347.1,1.06927375]
[1768406530382,0.002,3347.4,3347.1,4.05692852]
[1768406532191,0.002,3348.1,3347.1,4.05692852]
[1768406532192,0.002,3348.1,3347.4,1.06927375]
[1768406532768,0.44000002,3348.0,3347.4,1.06927375]
[1768406533393,0.44000002,3348.0,3347.1,7.91073518]
[1768406533804,0.44000002,3348.0,3347.1,10.89839614]
[1768406534098,0.44000002,3348.0,3347.2,1.3886184]
[1768406534302,0.44000002,3348.0,3347.2,2.45789215]
[1768406534805,1.58197272,3348.0,3347.1,5.97531573]
[1768406534994,0.44000002,3348.0,3347.1,7.04458948]
[1768406535189,0.44000002,3348.0,3347.2,1.06927375]
[1768406535784,0.44000002,3348.0,3347.3,2.98748244]
[1768406536410,1.1419727,3347.9,3347.2,2.98755196]
[1768406536700,0.83600002,3348.0,3347.2,5.97512366]
[1768406537307,3.82286896,3348.0,3347.2,2.98755196]
[1768406537507,4.96484166,3348.0,3347.2,2.98755196]
[1768406537800,1.1419727,3347.9,3346.9,5.97567898]
[1768406538873,0.002,3347.7,3346.9,10.03279222]
[1768406539089,0.002,3347.7,3347.0,1.06927375]
[1768406540007,0.002,3347.7,3347.2,1.06927375]
[1768406540203,0.002,3347.7,3347.3,1.06927375]
[1768406541195,0.002,3348.0,3347.3,1.06927375]
[1768406541907,0.002,3348.0,3347.4,5.9747864]
[1768406542298,0.002,3348.0,3347.4,2.9873932]
[1768406542608,0.002,3348.0,3347.4,7.04548241]
[1768406542902,0.002,3348.0,3347.5,1.07069601]
[1768406543402,0.002,3348.0,3347.4,6.9780881]
[1768406543796,0.002,3348.0,3347.4,3.9906949]
[1768406544001,0.002,3348.0,3347.4,5.9747864]
[1768406544706,0.002,3348.0,3347.4,7.04548241]
[1768406545116,0.002,3348.0,3347.5,1.07069601]
[1768406545877,0.002,3348.0,3347.7,1.07069601]
[1768406546609,0.002,3348.1,3347.7,1.07069601]
[1768406547420,0.002,3348.6,3348.1,0.77269601]
[1768406547600,0.002,3348.6,3347.7,7.66123853]
[1768406547800,0.002,3348.6,3347.8,1.07069601]
[1768406548001,0.002,3348.6,3348.0,1.07069601]
[1768406548514,0.002,3348.8,3348.3,5.35093634]
[1768406548811,0.396,3349.2,3348.4,1.07069601]
[1768406549014,0.396,3349.2,3348.6,5.35093634]
[1768406549214,0.396,3349.2,3348.4,1.07069601]
[1768406550115,0.396,3349.2,3348.5,4.05710783]
[1768406550520,0.396,3349.2,3348.6,1.07069601]
[1768406551030,0.09032472,3349.1,3348.4,2.98646458]
[1768406552120,0.09032472,3349.1,3348.3,2.98652715]
[1768406552121,1.47163351,3349.2,3348.3,1.07069601]
[1768406552290,3.47396557,3349.4,3348.3,1.07069601]
[1768406553119,0.002,3348.8,3348.3,1.07069601]
[1768406553317,0.002,3349.1,3348.7,1.07069601]
[1768406553823,0.002,3349.4,3348.8,1.07069601]
[1768406553997,0.002,3349.4,3348.9,2.98605512]
[1768406554527,0.002,3349.4,3348.9,4.05675113]
[1768406554960,0.002,3349.4,3348.9,1.07069601]
[1768406555222,0.002,3349.4,3348.8,2.98612033]
[1768406555991,1.07563351,3349.0,3348.5,2.83736956]
[1768406556191,0.09032472,3349.3,3348.5,5.64495596]
[1768406556192,0.396,3349.2,3348.5,5.64495596]
[1768406556393,0.002,3349.4,3348.5,5.97282364]
[1768406556609,0.002,3349.4,3348.5,7.04351965]
[1768406556815,0.002,3349.4,3348.6,6.42163235]
[1768406557219,0.002,3349.4,3348.7,1.07069601]
[1768406558103,0.002,3349.4,3348.8,2.98614429]
[1768406558509,0.002,3349.4,3348.8,5.97228858]
[1768406558696,0.002,3349.4,3348.8,7.04298459]
[1768406559221,0.002,3349.4,3348.8,4.0568403]
[1768406559532,0.002,3349.4,3348.8,7.04298459]
[1768406559832,0.002,3349.4,3348.9,1.07069601]
[1768406559996,0.396,3349.9,3348.9,1.07069601]
[1768406559997,0.396,3350.0,3348.9,1.07069601]
[1768406560535,0.396,3350.0,3349.0,5.9719319]
[1768406561238,3.47141721,3350.0,3349.0,5.9719319]
[1768406561409,0.48632472,3350.0,3349.0,5.9719319]
[1768406561609,0.396,3350.0,3349.0,7.04262791]
[1768406562021,0.396,3350.0,3349.1,1.07069601]
[1768406562539,0.396,3350.0,3349.2,5.9715753]
[1768406562740,0.002,3350.5,3349.3,1.07069601]
[1768406562741,1.07763351,3350.5,3349.3,1.07069601]
[1768406562904,1.07763351,3350.5,3349.4,1.07069601]
[1768406563105,4.06231773,3350.5,3349.4,1.07069601]
[1768406563424,1.07563351,3350.4,3349.4,1.07069601]
[1768406564231,1.07563351,3350.1,3349.1,2.98583897]
[1768406564434,1.07563351,3350.1,3349.2,0.39]
[1768406564733,1.07563351,3350.2,3349.3,2.9856985]
[1768406564934,2.98473863,3350.4,3349.4,1.07069601]
[1768406565300,2.98666804,3350.5,3349.4,1.07069601]
[1768406565505,0.002,3350.5,3349.4,1.07069601]
[1768406565712,2.98668267,3350.5,3349.4,1.07069601]
[1768406566022,1.07563351,3350.4,3349.3,2.9856985]
[1768406566215,1.07563351,3350.2,3349.4,0.39]
[1768406566426,0.002,3349.7,3349.4,1.46069601]
[1768406566624,0.002,3350.5,3349.5,1.07069601]
[1768406566821,0.002,3350.5,3349.6,1.07069601]
[1768406566822,0.002,3350.0,3349.6,1.07069601]
[1768406567021,2.9866382,3350.5,3349.8,1.07069601]
[1768406567200,0.002,3350.5,3349.8,1.07069601]
[1768406568203,0.002,3350.5,3349.5,0.743187]
[1768406568403,0.002,3350.5,3349.4,6.361174]
[1768406568404,0.002,3350.5,3349.7,1.07069601]
[1768406568604,0.002,3350.5,3349.9,1.07069601]
[1768406568800,0.002,3350.5,3349.8,0.39]
[1768406569034,0.002,3350.5,3349.8,3.37523431]
[1768406569232,0.002,3350.5,3349.8,0.39]
[1768406569616,0.002,3350.5,3349.9,2.98516305]
[1768406569947,0.002,3350.5,3349.8,3.37521702]
[1768406570313,0.002,3350.5,3349.9,4.05583876]
[1768406570517,2.98391668,3351.3,3350.3,0.92169601]
[1768406570845,0.002,3351.4,3350.4,0.39]
[1768406571244,0.002,3351.4,3350.4,1.386846]
[1768406571443,0.002,3351.4,3350.5,0.996846]
[1768406571855,0.002,3351.4,3350.4,0.39]
[1768406572063,1.03461195,3351.4,3350.5,0.39]
[1768406572353,0.002,3351.4,3350.6,0.996846]
[1768406572528,2.98332742,3352.0,3350.6,0.996846]
[1768406572731,2.98332742,3352.0,3350.7,5.96890202]
[1768406572930,2.98332742,3352.0,3350.8,0.996846]
[1768406573121,6.05697956,3352.0,3350.8,0.996846]
[1768406573344,3.37920836,3352.1,3350.8,0.996846]
[1768406573540,0.09032472,3352.0,3350.8,0.996846]
[1768406573711,1.03261195,3351.7,3350.4,0.996846]
[1768406573914,0.09032472,3351.8,3350.6,2.9845394]
[1768406573915,1.12293667,3351.6,3350.6,2.9845394]
[1768406574323,1.12293667,3352.0,3350.6,6.96592548]
[1768406574548,1.03261195,3352.0,3350.7,0.996846]
[1768406574734,0.396,3352.0,3350.8,5.96872388]
[1768406574933,1.03261195,3351.8,3350.8,5.67072388]
[1768406575244,0.396,3352.0,3350.8,5.37140618]
[1768406575450,0.396,3352.0,3350.8,6.36825218]
[1768406576141,0.396,3352.0,3350.9,0.996846]
[1768406576854,0.396,3352.0,3351.0,2.98418382]
[1768406577021,0.396,3352.0,3350.9,3.98108411]
[1768406577022,3.37931341,3352.0,3350.9,3.98108411]
[1768406577343,1.03261195,3351.6,3350.8,0.39]
[1768406577718,1.03261195,3351.6,3350.7,2.98437326]
[1768406577921,1.03261195,3351.6,3350.7,3.37437326]
[1768406578820,1.03261195,3351.6,3350.7,0.39]
[1768406579150,0.09032472,3351.9,3350.8,2.98436194]
[1768406579319,1.12293667,3351.9,3350.8,2.98436194]
[1768406580027,0.396,3352.0,3350.9,0.996846]
[1768406581048,1.51893667,3352.0,3350.9,0.996846]
[1768406581247,1.03261195,3351.9,3350.9,2.9842509]
[1768406581624,0.396,3352.0,3350.9,2.9842509]
[1768406581625,0.396,3352.0,3351.0,0.996846]
[1768406581824,3.91190121,3352.1,3351.0,0.996846]
[1768406582347,4.01579568,3352.2,3351.0,0.996846]
[1768406582727,2.98318373,3352.2,3351.0,0.996846]
[1768406582931,0.09032472,3352.1,3351.0,0.996846]
[1768406583129,3.07355666,3352.1,3351.0,3.98101555]
[1768406583359,4.10616861,3352.1,3351.0,0.996846]
[1768406585565,1.12293667,3352.1,3351.0,3.98102466]
[1768406585733,1.03261195,3352.1,3351.0,3.98102466]
[1768406586242,0.396,3352.3,3351.1,1.02668694]
[1768406586442,0.09032472,3353.6,3351.1,1.02668694]
[1768406586443,1.03261195,3353.0,3351.3,0.996846]
[1768406586677,1.03261195,3353.0,3351.4,0.996846]
[1768406586678,0.48632472,3352.9,3351.4,0.996846]
[1768406587236,2.98258172,3352.8,3351.6,0.996846]
[1768406587439,0.09032472,3352.7,3351.6,0.996846]
[1768406588182,2.98258172,3352.8,3351.6,0.996846]
[1768406588483,0.09032472,3352.4,3351.5,2.53673862]
[1768406588636,0.09032472,3352.4,3351.4,2.83479337]
[1768406588832,0.09032472,3352.4,3351.5,0.996846]
[1768406589270,1.12293667,3352.7,3351.5,0.996846]
[1768406589568,0.09032472,3352.5,3351.5,3.98057505]
[1768406589936,4.10563416,3352.7,3351.6,0.996846]
[1768406590152,4.10563416,3352.7,3351.5,2.98372905]
[1768406590440,0.09032472,3352.5,3351.5,2.98373678]
[1768406590641,0.09032472,3352.3,3351.3,0.39]
[1768406591058,0.09032472,3352.1,3351.3,3.37386611]
[1768406591265,0.09032472,3352.1,3351.3,0.39]
[1768406591454,0.09032472,3351.9,3351.1,0.996846]
[1768406591652,0.09032472,3351.9,3351.0,2.98416175]
[1768406591971,0.09032472,3351.9,3350.5,2.98459641]
[1768406591972,0.09032472,3351.3,3350.5,0.847846]
[1768406592274,0.09032472,3351.3,3350.1,0.001]
[1768406592275,0.09032472,3351.2,3350.2,0.996846]
[1768406592436,1.12293667,3351.1,3349.5,0.996846]
[1768406592642,6.05714918,3351.9,3349.1,6.78580043]
[1768406592643,0.09032472,3351.8,3350.3,0.996846]
[1768406592836,0.09032472,3351.8,3350.5,0.996846]
[1768406592837,0.48632472,3351.8,3350.5,0.996846]
[1768406593059,4.01587014,3352.1,3350.7,0.996846]
[1768406593060,1.03261195,3352.1,3350.7,0.996846]
[1768406593268,4.41181768,3352.1,3350.7,0.996846]
[1768406593567,1.42861195,3352.1,3350.8,6.96556988]
[1768406593767,1.03261195,3352.0,3350.8,2.98436194]
[1768406593969,1.03261195,3351.9,3350.5,0.996846]
[1768406594279,1.12293667,3351.9,3350.7,2.98444716]
[1768406594459,1.12293667,3351.9,3350.7,3.98129316]
[1768406594773,1.03261195,3351.9,3350.8,0.02984361]
[1768406594967,0.48632472,3352.1,3350.8,0.996846]
[1768406595269,4.50219488,3352.1,3350.8,0.996846]
[1768406595470,3.37893759,3352.4,3351.0,0.996846]
[1768406595641,3.37893759,3352.4,3351.1,0.996846]
[1768406596075,1.12293667,3352.3,3351.1,0.996846]
[1768406597366,1.03261195,3352.3,3351.1,0.996846]
[1768406597569,4.10603994,3352.3,3351.2,2.98400572]
[1768406598078,3.37897419,3352.4,3351.3,0.996846]
[1768406598250,3.37893847,3352.4,3351.3,0.996846]
[1768406599854,0.09032472,3352.3,3351.2,2.98397857]
[1768406600058,0.09032472,3352.1,3351.2,2.98399324]
[1768406600378,0.09032472,3352.1,3351.0,1.386846]
[1768406600751,0.09032472,3352.1,3351.2,2.98395726]
[1768406601278,0.396,3352.2,3351.2,2.98395726]
[1768406601454,0.396,3352.2,3351.3,2.9839131]
[1768406601660,0.396,3352.2,3351.2,2.98400572]
[1768406602174,0.396,3352.2,3351.2,5.99785149]
[1768406602481,1.10921228,3352.9,3351.3,1.02234545]
[1768406602777,1.01888756,3352.8,3351.3,1.02234545]
[1768406602951,1.41488756,3352.8,3351.3,1.02234545]
[1768406603281,1.41488756,3352.8,3351.6,0.96270005]
[1768406603461,1.01888756,3352.7,3351.6,0.96270005]
[1768406603779,4.00157199,3352.7,3351.6,3.9462736]
[1768406603960,1.10921228,3352.6,3351.6,2.98357355]
[1768406604161,0.09032472,3352.4,3351.5,3.37372216]
[1768406604360,1.10921228,3352.4,3351.5,3.37372216]
[1768406604561,0.09032472,3352.6,3351.6,2.98364701]
[1768406604752,4.09189671,3352.7,3351.6,2.98364701]
[1768406605578,1.01888756,3352.6,3351.6,2.98364701]
[1768406606779,4.00167032,3352.6,3351.5,1.02234545]
[1768406606981,1.01888756,3352.4,3351.2,0.87219471]
[1768406607280,0.396,3352.3,3351.5,2.9837349]
[1768406607503,0.002,3352.4,3351.6,1.02234545]
[1768406607661,0.396,3352.7,3351.6,1.02234545]
[1768406607866,0.396,3352.7,3351.7,2.98356058]
[1768406608076,0.396,3352.7,3351.7,4.00590603]
[1768406608276,0.396,3352.7,3351.7,6.98946661]
[1768406608607,0.396,3352.7,3351.7,1.02234545]
[1768406608774,3.37873077,3352.7,3351.7,1.02234545]
[1768406608963,4.48794305,3352.7,3351.7,1.02234545]
[1768406609169,1.01888756,3352.6,3351.6,2.98364756]
[1768406609394,1.41488756,3352.6,3351.6,2.98364756]
[1768406609874,1.01888756,3352.5,3351.4,1.02234545]
[1768406610079,0.396,3352.6,3351.5,2.98366601]
[1768406610080,1.01888756,3352.4,3351.5,2.98366601]
[1768406610277,1.01888756,3352.4,3351.5,5.96740463]
[1768406610677,1.01888756,3352.4,3351.5,2.98366601]
[1768406611395,1.01888756,3352.4,3351.5,5.96740463]
[1768406611698,1.01888756,3352.4,3351.5,2.98366601]
[1768406611995,1.01888756,3352.4,3351.2,6.99035689]
[1768406612693,1.01888756,3352.9,3351.3,1.02234545]
[1768406612895,1.01888756,3353.2,3351.3,1.02234545]
[1768406613102,1.01888756,3353.2,3351.5,1.02234545]
[1768406613273,1.01888756,3353.2,3351.2,11.93602288]
[1768406613274,1.01888756,3353.2,3352.4,0.02043519]
[1768406613611,4.00112757,3353.2,3352.4,0.02043519]
[1768406614186,2.98204807,3353.4,3352.4,0.02043519]
[1768406614499,0.396,3353.3,3352.4,0.02043519]
[1768406614795,2.98204807,3353.4,3352.4,0.02043519]
[1768406615013,0.396,3353.5,3352.4,7.00863304]
[1768406615294,2.98184804,3353.7,3352.4,7.00863304]
[1768406615295,4.00074791,3353.7,3352.4,7.00863304]
[1768406615469,1.01888756,3353.6,3352.5,1.02234545]
[1768406615882,1.10921228,3353.6,3352.4,0.02043519]
[1768406616090,4.0008467,3353.5,3352.4,3.00335016]
[1768406616276,1.01888756,3353.5,3352.4,3.00335016]
[1768406616477,1.01888756,3353.5,3352.4,3.00336956]
[1768406616996,3.07222853,3353.6,3352.5,1.02234545]
[1768406617299,1.01888756,3353.5,3352.4,3.00336956]
[1768406617667,3.07222853,3353.6,3352.5,1.02234545]
[1768406617871,1.01888756,3353.4,3352.4,2.70536956]
[1768406618182,1.01888756,3353.0,3352.0,2.98325672]
[1768406618383,1.01888756,3353.0,3351.9,2.98332292]
[1768406618573,1.01888756,3353.0,3352.0,2.98323362]
[1768406618774,1.01888756,3353.0,3351.9,3.37338195]
[1768406618974,1.01888756,3353.0,3352.0,2.98326046]
[1768406619179,1.01888756,3353.0,3352.1,2.98318961]
[1768406619379,1.01888756,3353.0,3352.1,2.98314088]
[1768406619581,1.01888756,3353.0,3352.2,2.98308886]
[1768406620178,1.01888756,3353.0,3351.9,0.39]
[1768406620365,1.01888756,3352.9,3351.9,0.39]
[1768406620570,2.98244054,3353.0,3351.9,1.41234545]
[1768406620771,4.0013281,3353.0,3351.9,1.41234545]
[1768406620968,6.98376864,3353.0,3351.9,1.41234545]
[1768406621196,1.10921228,3352.9,3351.9,0.39]
[1768406621604,1.10921228,3352.9,3351.8,2.98347156]
[1768406621981,1.10921228,3352.9,3351.8,5.96694312]
[1768406622486,4.3973281,3353.0,3351.9,1.02234545]
[1768406622823,1.01888756,3352.9,3351.8,2.98347156]
[1768406622976,1.10921228,3352.9,3351.8,2.98347156]
[1768406623576,3.37844054,3353.0,3351.9,1.02234545]
[1768406623577,2.98244054,3353.0,3351.9,1.02234545]
[1768406623779,2.98423311,3353.2,3352.1,1.02234545]
[1768406623995,0.002,3353.2,3352.2,1.02234545]
[1768406624206,0.002,3353.2,3352.3,1.02234545]
[1768406624400,0.002,3353.2,3352.4,4.00528304]
[1768406624578,0.002,3353.2,3352.4,6.98822063]
[1768406624780,0.002,3353.2,3352.4,4.00528304]
[1768406624975,0.002,3353.2,3352.5,1.02234545]
[1768406625323,0.002,3353.5,3352.5,1.02234545]
[1768406626378,0.002,3353.5,3352.6,4.00510509]
[1768406627180,0.002,3353.5,3352.7,1.02234545]
[1768406628312,1.02088756,3354.1,3352.8,1.02234545]
[1768406628511,0.396,3353.9,3352.9,5.96498552]
[1768406628720,4.00237429,3354.1,3353.0,1.02234545]
[1768406628721,1.02088756,3354.1,3353.0,1.02234545]
[1768406628878,0.002,3354.1,3353.0,1.02234545]
[1768406629783,0.09032472,3353.8,3352.8,4.00488905]
[1768406629987,1.10921228,3354.0,3352.3,2.98297445]
[1768406629988,0.09032472,3353.3,3352.5,2.98284674]
[1768406630187,0.09032472,3353.3,3352.6,2.98275226]
[1768406630714,1.01888756,3353.5,3352.4,5.96585854]
[1768406630916,1.01888756,3353.5,3352.5,0.02982848]
[1768406631218,1.33997509,3353.8,3352.5,0.98106462]
[1768406631521,2.98344317,3354.1,3352.5,0.98106462]
[1768406631522,3.92740526,3354.1,3352.5,0.98106462]
[1768406631689,1.03429981,3354.0,3352.5,0.98106462]
[1768406632018,0.09032472,3353.8,3352.7,0.98106462]
[1768406632215,1.03429981,3353.8,3352.7,0.98106462]
[1768406632398,0.09032472,3354.0,3352.8,1.37106462]
[1768406632717,3.0718593,3354.0,3352.9,3.96355738]
[1768406633097,3.07186266,3354.0,3352.9,3.96355738]
[1768406633285,4.01583775,3354.0,3352.9,3.96355738]
[1768406633492,1.03429981,3353.8,3352.9,2.98249276]
[1768406633752,1.03429981,3353.8,3352.8,3.37256802]
[1768406633917,1.03429981,3353.6,3352.5,0.98106462]